[Event "Reykjavik Open 2025"]
[Site "Reykjavik"]
[Date "2025.04.13"]
[Round "7.14"]
[White "Kracht, Raphael"]
[Black "Draskovic, Luka"]
[Result "0-1"]
[Annotator "ChessBase"]
[ECO "B22"]
[WhiteElo "2196"]
[BlackElo "2488"]
[PlyCount "112"]
[EventDate "2025.04.09"]
[EventType "swiss"]
[EventCountry "ISL"]
[SourceTitle "playchess.com"]
[Source "ChessBase"]
[SourceQuality "1"]
[TimeControl "40/5400+30:1800+30"]

1. e4 {[%emt 0:14:09]} c5 {[%emt 0:00:20]} 2. c3 {[%emt 0:00:05]} Nf6 {[%emt 0:00:54]} 3. e5 {[%emt 0:00:09]} Nd5 {[%emt 0:00:04]} 4. Bc4 {[%emt 0:00:03]} Nb6 {[%emt 0:00:55]} 5. Bb3 {[%emt 0:00:05]} d5 {[%emt 0:02:38]} 6. exd6 {[%emt 0:00:54]} Qxd6 {[%emt 0:02:06]} 7. Nf3 {[%emt 0:00:24]} Nc6 {[%emt 0:01:14]} 8. O-O {[%emt 0:00:36]} e5 {[%emt 0:01:53]} 9. Na3 {[%emt 0:13:30]} Be7 {[%emt 0:02:57]} 10. d4 {[%emt 0:07:34]} cxd4 {[%emt 0:09:21]} 11. Nb5 {[%emt 0:12:39]} Qd8 {[%emt 0:08:22]} 12. cxd4 {[%emt 0:04:11]} a6 {[%emt 0:02:40]} 13. d5 {[%emt 0:02:56]} axb5 {[%emt 0:07:15]} 14. dxc6 {[%emt 0:00:06]} Qxd1 {[%emt 0:00:45]} 15. Rxd1 {[%emt 0:00:48]} f6 {[%emt 0:00:14]} 16. Be3 {[%emt 0:07:53]} Nc4 {[%emt 0:04:42]} 17. Bxc4 {[%emt 0:07:25]} bxc4 {[%emt 0:00:08]} 18. Nd2 {[%emt 0:00:07]} bxc6 {[%emt 0:10:59]} 19. Nxc4 {[%emt 0:00:07]} Kf7 {[%emt 0:01:12]} 20. Nb6 {[%emt 0:06:38]} Ra6 {[%emt 0:00:54]} 21. Nxc8 {[%emt 0:00:07]} Rxc8 {[%emt 0:00:06]} 22. Rd7 {[%emt 0:04:33]} Ke6 {[%emt 0:06:06]} 23. Rb7 {[%emt 0:00:07]} c5 {[%emt 0:04:44]} 24. Bd2 {[%emt 0:02:45]} Rd8 {[%emt 0:03:07]} 25. Bc3 {[%emt 0:00:25]} Rxa2 {[%emt 0:01:53]} 26. Re1 {[%emt 0:00:55]} Rd7 {[%emt 0:03:40]} 27. Rxd7 {[%emt 0:03:12]} Kxd7 {[%emt 0:00:05]} 28. g4 {[%emt 0:00:29]} Bd6 {[%emt 0:04:37]} 29. Kg2 {[%emt 0:00:22]} Kc6 {[%emt 0:00:30]} 30. h3 {[%emt 0:02:30]} Bc7 {[%emt 0:04:16]} 31. Kf3 {[%emt 0:02:40]} Ba5 {[%emt 0:00:30]} 32. Bxa5 {[%emt 0:02:20]} Rxa5 {[%emt 0:00:06]} 33. Rd1 {[%emt 0:04:25]} Rb5 {[%emt 0:02:31]} 34. Rd2 {[%emt 0:01:46]} Rb3+ {[%emt 0:00:20]} 35. Kg2 {[%emt 0:00:05]} c4 {[%emt 0:00:25]} 36. h4 {[%emt 0:00:07]} g6 {[%emt 0:00:40]} 37. Re2 {[%emt 0:01:16]} Kd5 {[%emt 0:02:46]} 38. Rd2+ {[%emt 0:00:19]} Rd3 {[%emt 0:00:24]} 39. Rc2 {[%emt 0:00:15]} f5 {[%emt 0:00:24]} 40. gxf5 {[%emt 0:00:29]} gxf5 {[%emt 0:00:06]} 41. h5 {[%emt 0:30:31]} e4 {[%emt 0:31:15]} 42. Re2 {[%emt 0:00:00]} Kc5 {[%emt 0:00:00]} 43. h6 {[%emt 0:00:00]} Kb4 {[%emt 0:00:00]} 44. Re1 {[%emt 0:00:00]} Kb3 {[%emt 0:00:00]} 45. Ra1 {[%emt 0:00:00]} Rd6 {[%emt 0:00:00]} 46. Ra5 {[%emt 0:00:00]} Kxb2 {[%emt 0:00:00]} 47. Rxf5 {[%emt 0:00:00]} Rxh6 {[%emt 0:00:00]} 48. Rb5+ {[%emt 0:00:00]} Kc2 {[%emt 0:00:00]} 49. Kf1 {[%emt 0:00:00]} c3 {[%emt 0:00:00]} 50. Ke2 {[%emt 0:00:00]} Rd6 {[%emt 0:00:00]} 51. Rb4 {[%emt 0:00:00]} Kc1 {[%emt 0:00:00]} 52. Rb7 {[%emt 0:00:00]} c2 {[%emt 0:00:00]} 53. Rxh7 {[%emt 0:00:00]} Rb6 {[%emt 0:00:00]} 54. Ke3 {[%emt 0:00:00]} Kb2 {[%emt 0:00:00]} 55. Rc7 {[%emt 0:00:00]} Rb3+ {[%emt 0:00:00]} 56. Kd4 {[%emt 0:00:00]} Rb4+ {[%emt 0:00:00]} 0-1

[Event "Reykjavik Open 2025"]
[Site "Reykjavik"]
[Date "2025.04.13"]
[Round "7.15"]
[White "Jacobson, Brandon"]
[Black "Le Goff, Ronan"]
[Result "1-0"]
[Annotator "ChessBase"]
[ECO "C55"]
[WhiteElo "2570"]
[BlackElo "2282"]
[PlyCount "77"]
[EventDate "2025.04.09"]
[EventType "swiss"]
[EventCountry "ISL"]
[SourceTitle "playchess.com"]
[Source "ChessBase"]
[SourceQuality "1"]
[TimeControl "40/5400+30:1800+30"]

1. e4 {[%emt 0:01:39]} e5 {[%emt 0:02:48]} 2. Nf3 {[%emt 0:01:03]} Nc6 {[%emt 0:00:07]} 3. Bc4 {[%emt 0:00:28]} Nf6 {[%emt 0:00:11]} 4. d3 {[%emt 0:00:16]} Be7 {[%emt 0:01:15]} 5. Nc3 {[%emt 0:01:28]} d6 {[%emt 0:01:31]} 6. a3 {[%emt 0:00:15]} O-O {[%emt 0:02:10]} 7. Be3 {[%emt 0:07:22]} Be6 {[%emt 0:05:29]} 8. Nd5 {[%emt 0:00:12]} Na5 {[%emt 0:19:16]} 9. Nxf6+ {[%emt 0:02:57]} Bxf6 {[%emt 0:01:29]} 10. Bxe6 {[%emt 0:02:27]} fxe6 {[%emt 0:00:07]} 11. h4 {[%emt 0:00:04]} d5 {[%emt 0:12:12]} 12. Ng5 {[%emt 0:04:21]} Bxg5 {[%emt 0:09:31]} 13. hxg5 {[%emt 0:00:12]} g6 {[%emt 0:00:31]} 14. Qg4 {[%emt 0:01:59]} Qe8 {[%emt 0:01:23]} 15. O-O-O {[%emt 0:02:07]} Rf7 {[%emt 0:03:28]} 16. Rh3 {[%emt 0:20:03]} c5 {[%emt 0:06:05]} 17. Rdh1 {[%emt 0:21:44]} c4 {[%emt 0:05:26]} 18. Bd2 {[%emt 0:03:05]} Nc6 {[%emt 0:04:44]} 19. exd5 {[%emt 0:01:27]} exd5 {[%emt 0:00:13]} 20. dxc4 {[%emt 0:00:05]} Nd4 {[%emt 0:04:29]} 21. Bc3 {[%emt 0:01:01]} Qc8 {[%emt 0:01:48]} 22. Qxc8+ {[%emt 0:24:26]} Rxc8 {[%emt 0:00:07]} 23. cxd5 {[%emt 0:00:01]} Ne2+ {[%emt 0:03:14]} 24. Kd2 {[%emt 0:01:24]} Nxc3 {[%emt 0:01:20]} 25. Rxc3 {[%emt 0:00:04]} Rxf2+ {[%emt 0:00:40]} 26. Ke3 {[%emt 0:01:48]} Rxc3+ {[%emt 0:03:35]} 27. bxc3 {[%emt 0:00:01]} Rxc2 {[%emt 0:07:51]} 28. Rf1 {[%emt 0:00:01]} Rxc3+ {[%emt 0:01:13]} 29. Ke4 {[%emt 0:00:01]} Rc2 {[%emt 0:01:29]} 30. d6 {[%emt 0:01:09]} Rd2 {[%emt 0:00:32]} 31. Kxe5 {[%emt 0:00:02]} Re2+ {[%emt 0:00:34]} 32. Kd5 {[%emt 0:00:14]} Rd2+ {[%emt 0:00:18]} 33. Ke6 {[%emt 0:00:02]} Re2+ {[%emt 0:00:09]} 34. Kf6 {[%emt 0:01:09]} Rd2 {[%emt 0:01:43]} 35. Ke7 {[%emt 0:00:05]} Re2+ {[%emt 0:00:08]} 36. Kd8 {[%emt 0:00:05]} Rd2 {[%emt 0:00:52]} 37. d7 {[%emt 0:00:15]} b5 {[%emt 0:00:17]} 38. Rc1 {[%emt 0:00:33]} Kf7 {[%emt 0:00:18]} 39. Kc7 {[%emt 0:00:06]} 1-0

[Event "Reykjavik Open 2025"]
[Site "Reykjavik"]
[Date "2025.04.13"]
[Round "7.16"]
[White "Colas, Joshua"]
[Black "Ivic, Velimir"]
[Result "0-1"]
[Annotator "ChessBase"]
[ECO "E60"]
[WhiteElo "2275"]
[BlackElo "2623"]
[PlyCount "120"]
[EventDate "2025.04.09"]
[EventType "swiss"]
[EventCountry "ISL"]
[SourceTitle "playchess.com"]
[Source "ChessBase"]
[SourceQuality "1"]
[TimeControl "40/5400+30:1800+30"]

1. Nf3 {[%emt 0:00:24]} d6 {[%emt 0:05:52]} 2. d4 {[%emt 0:01:07]} Nf6 {[%emt 0:00:09]} 3. g3 {[%emt 0:00:59]} g6 {[%emt 0:01:59]} 4. Bg2 {[%emt 0:01:38]} Bg7 {[%emt 0:00:23]} 5. O-O {[%emt 0:00:30]} O-O {[%emt 0:00:49]} 6. c4 {[%emt 0:00:45]} c6 {[%emt 0:00:20]} 7. d5 {[%emt 0:04:45]} cxd5 {[%emt 0:07:38]} 8. cxd5 {[%emt 0:00:14]} Na6 {[%emt 0:01:12]} 9. Nc3 {[%emt 0:01:43]} Nc5 {[%emt 0:05:16]} 10. Be3 {[%emt 0:03:17]} Bd7 {[%emt 0:05:26]} 11. Bd4 {[%emt 0:03:22]} a5 {[%emt 0:02:18]} 12. Bxc5 {[%emt 0:08:09]} dxc5 {[%emt 0:00:14]} 13. a4 {[%emt 0:00:11]} Qb6 {[%emt 0:16:33]} 14. Qc2 {[%emt 0:00:58]} Qb4 {[%emt 0:03:34]} 15. e4 {[%emt 0:06:34]} Ng4 {[%emt 0:01:31]} 16. h3 {[%emt 0:07:05]} Ne5 {[%emt 0:00:35]} 17. Ne1 {[%emt 0:01:11]} Qb6 {[%emt 0:05:59]} 18. Kh1 {[%emt 0:06:32]} e6 {[%emt 0:03:22]} 19. Qe2 {[%emt 0:07:47]} exd5 {[%emt 0:01:47]} 20. Nxd5 {[%emt 0:00:43]} Qd8 {[%emt 0:01:50]} 21. f4 {[%emt 0:01:06]} Nc6 {[%emt 0:00:36]} 22. Nf3 {[%emt 0:01:44]} Re8 {[%emt 0:03:44]} 23. Qc2 {[%emt 0:04:22]} Nb4 {[%emt 0:16:17]} 24. Nxb4 {[%emt 0:04:46]} cxb4 {[%emt 0:01:39]} 25. e5 {[%emt 0:00:29]} Rc8 {[%emt 0:00:49]} 26. Qf2 {[%emt 0:00:21]} Qe7 {[%emt 0:02:39]} 27. Qb6 {[%emt 0:01:44]} Rc2 {[%emt 0:01:09]} 28. Qxa5 {[%emt 0:01:12]} Bc6 {[%emt 0:01:58]} 29. b3 {[%emt 0:03:09]} Rc3 {[%emt 0:02:06]} 30. Kh2 {[%emt 0:02:30]} Rd8 {[%emt 0:00:54]} 31. Rac1 {[%emt 0:02:18]} Rxb3 {[%emt 0:00:46]} 32. Rb1 {[%emt 0:00:17]} Rxb1 {[%emt 0:01:04]} 33. Rxb1 {[%emt 0:00:06]} Bf8 {[%emt 0:01:09]} 34. Rb2 {[%emt 0:00:17]} Rd3 {[%emt 0:00:42]} 35. Ng5 {[%emt 0:02:28]} Re3 {[%emt 0:02:40]} 36. Qb6 {[%emt 0:00:44]} Re1 {[%emt 0:01:58]} 37. Bxc6 {[%emt 0:03:11]} bxc6 {[%emt 0:00:01]} 38. Qxc6 {[%emt 0:00:15]} Qa7 {[%emt 0:00:15]} 39. Nf3 {[%emt 0:01:17]} Re3 {[%emt 0:00:56]} 40. h4 {[%emt 0:03:03]} Rc3 {[%emt 0:00:29]} 41. Qd5 {[%emt 0:30:25]} Qe3 {[%emt 0:03:32]} 42. Kg2 {[%emt 0:00:00]} b3 {[%emt 0:07:10]} 43. h5 {[%emt 0:00:00]} Rc2+ {[%emt 0:10:42]} 44. Rxc2 {[%emt 0:00:00]} bxc2 {[%emt 0:00:04]} 45. hxg6 {[%emt 0:00:00]} hxg6 {[%emt 0:00:11]} 46. Ng5 {[%emt 0:00:00]} Qe2+ {[%emt 0:00:49]} 47. Kh3 {[%emt 0:00:00]} Qh5+ {[%emt 0:00:14]} 48. Kg2 {[%emt 0:00:00]} Qxg5 {[%emt 0:00:18]} 49. fxg5 {[%emt 0:00:00]} c1=Q {[%emt 0:00:04]} 50. e6 {[%emt 0:00:00]} Qc2+ {[%emt 0:00:17]} 51. Kh1 {[%emt 0:00:00]} Qxa4 {[%emt 0:01:38]} 52. exf7+ {[%emt 0:00:00]} Kh7 {[%emt 0:00:15]} 53. Kg2 {[%emt 0:00:00]} Qb4 {[%emt 0:00:41]} 54. Kf3 {[%emt 0:00:00]} Qe7 {[%emt 0:00:17]} 55. Kg4 {[%emt 0:00:00]} Kg7 {[%emt 0:00:12]} 56. Kh4 {[%emt 0:00:00]} Qxf7 {[%emt 0:00:11]} 57. Qe5+ {[%emt 0:00:00]} Kh7 {[%emt 0:00:13]} 58. Qf4 {[%emt 0:00:00]} Kg8 {[%emt 0:00:51]} 59. Qf6 {[%emt 0:00:00]} Qxf6 {[%emt 0:00:20]} 60. gxf6 {[%emt 0:00:00]} Kf7 {[%emt 0:00:04]} 0-1

[Event "Reykjavik Open 2025"]
[Site "Reykjavik"]
[Date "2025.04.13"]
[Round "7.17"]
[White "Maze, Sebastien"]
[Black "Briem, Benedikt"]
[Result "1-0"]
[Annotator "ChessBase"]
[ECO "C65"]
[WhiteElo "2557"]
[BlackElo "2249"]
[PlyCount "121"]
[EventDate "2025.04.09"]
[EventType "swiss"]
[EventCountry "ISL"]
[SourceTitle "playchess.com"]
[Source "ChessBase"]
[SourceQuality "1"]
[TimeControl "40/5400+30:1800+30"]

1. e4 {[%emt 0:00:02]} e5 {[%emt 0:00:05]} 2. Nf3 {[%emt 0:00:04]} Nc6 {[%emt 0:00:16]} 3. Bb5 {[%emt 0:00:06]} Nf6 {[%emt 0:00:05]} 4. d3 {[%emt 0:00:10]} Bc5 {[%emt 0:00:10]} 5. Bxc6 {[%emt 0:00:31]} dxc6 {[%emt 0:00:28]} 6. Nbd2 {[%emt 0:03:29]} Be6 {[%emt 0:00:55]} 7. O-O {[%emt 0:00:20]} Nd7 {[%emt 0:01:50]} 8. Nb3 {[%emt 0:02:24]} Bxb3 {[%emt 0:01:13]} 9. axb3 {[%emt 0:00:03]} Qe7 {[%emt 0:03:49]} 10. Bd2 {[%emt 0:00:34]} a6 {[%emt 0:03:24]} 11. Qe1 {[%emt 0:00:18]} O-O {[%emt 0:05:18]} 12. b4 {[%emt 0:00:25]} Bd6 {[%emt 0:01:03]} 13. c4 {[%emt 0:02:24]} c5 {[%emt 0:03:44]} 14. bxc5 {[%emt 0:00:07]} Nxc5 {[%emt 0:02:59]} 15. d4 {[%emt 0:09:16]} Nb3 {[%emt 0:06:43]} 16. c5 {[%emt 0:10:40]} Bxc5 {[%emt 0:03:14]} 17. dxc5 {[%emt 0:00:32]} Nxa1 {[%emt 0:00:25]} 18. Qxa1 {[%emt 0:00:03]} Qxc5 {[%emt 0:00:58]} 19. Rc1 {[%emt 0:00:03]} Qb5 {[%emt 0:00:39]} 20. Rxc7 {[%emt 0:07:28]} Rac8 {[%emt 0:02:27]} 21. Re7 {[%emt 0:01:45]} Rfe8 {[%emt 0:07:58]} 22. Rxe8+ {[%emt 0:00:48]} Qxe8 {[%emt 0:09:52]} 23. Bc3 {[%emt 0:01:34]} f6 {[%emt 0:00:12]} 24. h4 {[%emt 0:01:30]} Rd8 {[%emt 0:03:11]} 25. Nd2 {[%emt 0:03:46]} Qe6 {[%emt 0:05:54]} 26. Qa5 {[%emt 0:02:57]} Rd7 {[%emt 0:04:49]} 27. Qc5 {[%emt 0:04:31]} h5 {[%emt 0:10:43]} 28. f3 {[%emt 0:01:17]} b5 {[%emt 0:02:09]} 29. Nf1 {[%emt 0:02:30]} Qd6 {[%emt 0:14:25]} 30. Qxd6 {[%emt 0:00:06]} Rxd6 {[%emt 0:00:03]} 31. Ne3 {[%emt 0:00:04]} Rc6 {[%emt 0:00:53]} 32. Kf2 {[%emt 0:00:49]} Kf7 {[%emt 0:00:46]} 33. Ke2 {[%emt 0:00:40]} Ke6 {[%emt 0:01:05]} 34. Kd3 {[%emt 0:04:10]} Rc8 {[%emt 0:03:06]} 35. Nd5 {[%emt 0:00:29]} Rc6 {[%emt 0:01:39]} 36. f4 {[%emt 0:07:58]} Rc8 {[%emt 0:00:54]} 37. g3 {[%emt 0:06:26]} Rc6 {[%emt 0:00:32]} 38. fxe5 {[%emt 0:20:08]} fxe5 {[%emt 0:00:08]} 39. Ne3 {[%emt 0:00:52]} Rc8 {[%emt 0:01:02]} 40. Nc2 {[%emt 0:00:04]} Rf8 {[%emt 0:00:50]} 41. Ke2 {[%emt 0:30:06]} Ra8 {[%emt 0:30:28]} 42. Ba5 {[%emt 0:02:47]} Kf6 {[%emt 0:00:00]} 43. Ne1 {[%emt 0:00:00]} g5 {[%emt 0:00:00]} 44. Nd3 {[%emt 0:00:00]} gxh4 {[%emt 0:00:00]} 45. gxh4 {[%emt 0:00:00]} Rg8 {[%emt 0:00:00]} 46. Kf3 {[%emt 0:00:00]} Ke6 {[%emt 0:00:00]} 47. Nc5+ {[%emt 0:00:00]} Kf6 {[%emt 0:00:00]} 48. Be1 {[%emt 0:00:00]} Ra8 {[%emt 0:02:41]} 49. b4 {[%emt 0:00:00]} Ke7 {[%emt 0:00:18]} 50. Nd3 {[%emt 0:00:00]} Kd6 {[%emt 0:01:08]} 51. Bc3 {[%emt 0:00:00]} Ke6 {[%emt 0:00:24]} 52. Ke3 {[%emt 0:00:00]} Rg8 {[%emt 0:00:47]} 53. Bxe5 {[%emt 0:00:00]} Rg4 {[%emt 0:00:26]} 54. Bf4 {[%emt 0:00:00]} Rxh4 {[%emt 0:00:24]} 55. Nf2 {[%emt 0:00:00]} a5 {[%emt 0:00:34]} 56. bxa5 {[%emt 0:00:00]} b4 {[%emt 0:00:13]} 57. a6 {[%emt 0:00:05]} b3 {[%emt 0:00:04]} 58. a7 {[%emt 0:00:04]} b2 {[%emt 0:00:11]} 59. a8=Q {[%emt 0:00:07]} b1=Q {[%emt 0:00:24]} 60. Qe8+ {[%emt 0:01:12]} Kf6 {[%emt 0:00:08]} 61. Be5+ {[%emt 0:00:13]} 1-0

[Event "Reykjavik Open 2025"]
[Site "Reykjavik"]
[Date "2025.04.13"]
[Round "7.18"]
[White "Nissinen, Niilo Man"]
[Black "Friedel, Joshua"]
[Result "0-1"]
[Annotator "ChessBase"]
[ECO "B12"]
[WhiteElo "2268"]
[BlackElo "2552"]
[PlyCount "106"]
[EventDate "2025.04.09"]
[EventType "swiss"]
[EventCountry "ISL"]
[SourceTitle "playchess.com"]
[Source "ChessBase"]
[SourceQuality "1"]
[TimeControl "40/5400+30:1800+30"]

1. e4 {[%emt 0:00:04]} c6 {[%emt 0:00:08]} 2. d4 {[%emt 0:00:35]} d5 {[%emt 0:00:05]} 3. e5 {[%emt 0:00:45]} Bf5 {[%emt 0:00:06]} 4. h4 {[%emt 0:01:32]} h5 {[%emt 0:00:15]} 5. c4 {[%emt 0:00:11]} e6 {[%emt 0:00:14]} 6. Nc3 {[%emt 0:00:12]} dxc4 {[%emt 0:00:27]} 7. Bxc4 {[%emt 0:00:13]} Nd7 {[%emt 0:00:06]} 8. Nge2 {[%emt 0:00:19]} Be7 {[%emt 0:00:50]} 9. g3 {[%emt 0:00:16]} Bg4 {[%emt 0:05:22]} 10. O-O {[%emt 0:09:19]} Nh6 {[%emt 0:02:28]} 11. Bf4 {[%emt 0:02:28]} Nb6 {[%emt 0:22:02]} 12. Bb3 {[%emt 0:07:21]} Nd5 {[%emt 0:03:04]} 13. Nxd5 {[%emt 0:04:57]} exd5 {[%emt 0:00:31]} 14. Qd2 {[%emt 0:06:22]} Qb6 {[%emt 0:06:32]} 15. f3 {[%emt 0:07:00]} Be6 {[%emt 0:01:41]} 16. Kh2 {[%emt 0:16:33]} Nf5 {[%emt 0:01:06]} 17. Bc2 {[%emt 0:04:00]} Qb4 {[%emt 0:06:06]} 18. Qc3 {[%emt 0:08:42]} a5 {[%emt 0:02:36]} 19. a4 {[%emt 0:02:33]} O-O-O {[%emt 0:02:10]} 20. Rad1 {[%emt 0:02:48]} Rdg8 {[%emt 0:03:31]} 21. Rg1 {[%emt 0:04:20]} g5 {[%emt 0:06:38]} 22. Qxb4 {[%emt 0:00:41]} axb4 {[%emt 0:00:09]} 23. hxg5 {[%emt 0:00:44]} Bxg5 {[%emt 0:00:12]} 24. Bxg5 {[%emt 0:04:03]} Rxg5 {[%emt 0:00:06]} 25. Nf4 {[%emt 0:05:26]} Ne3 {[%emt 0:02:09]} 26. Rc1 {[%emt 0:00:10]} Bg4 {[%emt 0:03:58]} 27. Nh3 {[%emt 0:07:01]} Rg7 {[%emt 0:02:48]} 28. f4 {[%emt 0:00:49]} Bxh3 {[%emt 0:03:10]} 29. Kxh3 {[%emt 0:00:06]} Nxc2 {[%emt 0:09:08]} 30. Rxc2 {[%emt 0:00:12]} Rhg8 {[%emt 0:00:17]} 31. Rgg2 {[%emt 0:04:03]} Rg4 {[%emt 0:01:24]} 32. Rce2 {[%emt 0:01:20]} Kd7 {[%emt 0:00:25]} 33. b3 {[%emt 0:01:22]} Ke6 {[%emt 0:01:09]} 34. f5+ {[%emt 0:00:29]} Ke7 {[%emt 0:04:49]} 35. f6+ {[%emt 0:00:24]} Ke6 {[%emt 0:00:09]} 36. Rd2 {[%emt 0:00:05]} R8g5 {[%emt 0:01:54]} 37. Rd3 {[%emt 0:00:50]} Re4 {[%emt 0:01:04]} 38. Rf2 {[%emt 0:00:38]} Rgg4 {[%emt 0:01:36]} 39. Rfd2 {[%emt 0:00:13]} h4 {[%emt 0:00:53]} 40. gxh4 {[%emt 0:00:20]} Rxh4+ {[%emt 0:00:49]} 41. Kg2 {[%emt 0:03:24]} Ref4 {[%emt 0:03:34]} 42. Kg1 {[%emt 0:03:47]} Rhg4+ {[%emt 0:08:57]} 43. Kh2 {[%emt 0:01:14]} Kf5 {[%emt 0:00:15]} 44. Re3 {[%emt 0:12:44]} Rh4+ {[%emt 0:01:42]} 45. Kg1 {[%emt 0:04:34]} Rfg4+ {[%emt 0:00:42]} 46. Rg2 {[%emt 0:00:42]} Ke6 {[%emt 0:00:31]} 47. Reg3 {[%emt 0:02:25]} Rxg3 {[%emt 0:00:40]} 48. Rxg3 {[%emt 0:00:05]} Rxd4 {[%emt 0:00:04]} 49. Rg8 {[%emt 0:00:14]} Kxe5 {[%emt 0:00:40]} 50. Rb8 {[%emt 0:00:18]} Kxf6 {[%emt 0:04:10]} 51. Rxb7 {[%emt 0:00:07]} Ke6 {[%emt 0:01:42]} 52. Rc7 {[%emt 0:02:15]} Kd6 {[%emt 0:00:40]} 53. Rxf7 {[%emt 0:00:33]} Rd3 {[%emt 0:00:04]} 0-1

[Event "Reykjavik Open 2025"]
[Site "Reykjavik"]
[Date "2025.04.13"]
[Round "7.19"]
[White "Sokolovsky, Yahli"]
[Black "Wan, Joseph"]
[Result "1-0"]
[Annotator "ChessBase"]
[ECO "C02"]
[WhiteElo "2546"]
[BlackElo "2242"]
[PlyCount "69"]
[EventDate "2025.04.09"]
[EventType "swiss"]
[EventCountry "ISL"]
[SourceTitle "playchess.com"]
[Source "ChessBase"]
[SourceQuality "1"]
[TimeControl "40/5400+30:1800+30"]

1. e4 {[%emt 0:00:05]} e6 {[%emt 0:04:22]} 2. d4 {[%emt 0:00:09]} d5 {[%emt 0:00:03]} 3. e5 {[%emt 0:00:08]} c5 {[%emt 0:00:14]} 4. c3 {[%emt 0:00:06]} Nc6 {[%emt 0:00:16]} 5. Nf3 {[%emt 0:00:07]} Bd7 {[%emt 0:00:49]} 6. Be2 {[%emt 0:00:10]} Nge7 {[%emt 0:00:31]} 7. O-O {[%emt 0:00:26]} Nf5 {[%emt 0:01:48]} 8. dxc5 {[%emt 0:00:13]} Bxc5 {[%emt 0:00:09]} 9. Bd3 {[%emt 0:00:04]} Nh4 {[%emt 0:03:59]} 10. Nbd2 {[%emt 0:00:13]} Nxf3+ {[%emt 0:01:50]} 11. Nxf3 {[%emt 0:00:10]} Be7 {[%emt 0:00:33]} 12. Bf4 {[%emt 0:07:23]} Rc8 {[%emt 0:06:04]} 13. Qd2 {[%emt 0:01:48]} Qb6 {[%emt 0:09:11]} 14. Rab1 {[%emt 0:22:21]} Na5 {[%emt 0:05:51]} 15. Qe2 {[%emt 0:03:59]} a6 {[%emt 0:01:04]} 16. Nd4 {[%emt 0:01:23]} Nc6 {[%emt 0:03:57]} 17. Qg4 {[%emt 0:06:12]} g5 {[%emt 0:17:40]} 18. Nxc6 {[%emt 0:01:13]} h5 {[%emt 0:00:43]} 19. Qe2 {[%emt 0:13:37]} Qxc6 {[%emt 0:02:03]} 20. Be3 {[%emt 0:00:08]} Kd8 {[%emt 0:02:22]} 21. Kh1 {[%emt 0:12:31]} Kc7 {[%emt 0:03:52]} 22. b4 {[%emt 0:00:52]} Qa4 {[%emt 0:04:55]} 23. f4 {[%emt 0:03:45]} g4 {[%emt 0:03:37]} 24. f5 {[%emt 0:02:56]} Kb8 {[%emt 0:08:32]} 25. Bg1 {[%emt 0:05:17]} Bc6 {[%emt 0:09:32]} 26. Qe3 {[%emt 0:02:03]} d4 {[%emt 0:01:01]} 27. Qxd4 {[%emt 0:08:58]} Rcd8 {[%emt 0:00:27]} 28. Qa7+ {[%emt 0:00:05]} Kc8 {[%emt 0:00:07]} 29. Bd4 {[%emt 0:03:57]} h4 {[%emt 0:03:13]} 30. fxe6 {[%emt 0:02:14]} h3 {[%emt 0:01:28]} 31. Rxf7 {[%emt 0:00:13]} Qxa2 {[%emt 0:02:37]} 32. Be4 {[%emt 0:01:05]} Qxe6 {[%emt 0:02:32]} 33. Rxe7 {[%emt 0:02:28]} Qxe7 {[%emt 0:00:52]} 34. Bxc6 {[%emt 0:00:05]} hxg2+ {[%emt 0:00:38]} 35. Bxg2 {[%emt 0:00:58]} 1-0

[Event "Reykjavik Open 2025"]
[Site "Reykjavik"]
[Date "2025.04.13"]
[Round "7.20"]
[White "Priansh Das"]
[Black "Bailet, Pierre"]
[Result "1/2-1/2"]
[Annotator "ChessBase"]
[ECO "B15"]
[WhiteElo "2262"]
[BlackElo "2495"]
[PlyCount "126"]
[EventDate "2025.04.09"]
[EventType "swiss"]
[EventCountry "ISL"]
[SourceTitle "playchess.com"]
[Source "ChessBase"]
[SourceQuality "1"]
[TimeControl "40/5400+30:1800+30"]

1. e4 {[%emt 0:00:04]} c6 {[%emt 0:01:14]} 2. d4 {[%emt 0:00:05]} d5 {[%emt 0:00:06]} 3. Nc3 {[%emt 0:00:04]} dxe4 {[%emt 0:00:59]} 4. Nxe4 {[%emt 0:00:06]} Nf6 {[%emt 0:00:04]} 5. Nxf6+ {[%emt 0:00:05]} exf6 {[%emt 0:00:04]} 6. c3 {[%emt 0:00:07]} Bd6 {[%emt 0:00:05]} 7. Bd3 {[%emt 0:00:06]} O-O {[%emt 0:00:11]} 8. Qc2 {[%emt 0:00:32]} Re8+ {[%emt 0:00:13]} 9. Ne2 {[%emt 0:00:04]} h5 {[%emt 0:00:07]} 10. O-O {[%emt 0:00:05]} h4 {[%emt 0:00:36]} 11. h3 {[%emt 0:01:01]} Nd7 {[%emt 0:00:42]} 12. Bd2 {[%emt 0:00:15]} Nf8 {[%emt 0:00:24]} 13. Rae1 {[%emt 0:01:19]} Bc7 {[%emt 0:01:24]} 14. f4 {[%emt 0:21:02]} Qd6 {[%emt 0:02:54]} 15. c4 {[%emt 0:05:25]} b6 {[%emt 0:05:47]} 16. b4 {[%emt 0:08:33]} a5 {[%emt 0:03:37]} 17. bxa5 {[%emt 0:04:57]} bxa5 {[%emt 0:00:17]} 18. c5 {[%emt 0:01:23]} Qd5 {[%emt 0:05:08]} 19. f5 {[%emt 0:00:19]} Ba6 {[%emt 0:01:45]} 20. Bxa6 {[%emt 0:01:11]} Rxa6 {[%emt 0:01:57]} 21. Qd3 {[%emt 0:00:09]} Raa8 {[%emt 0:01:16]} 22. Nc3 {[%emt 0:00:17]} Qd7 {[%emt 0:01:16]} 23. d5 {[%emt 0:02:03]} cxd5 {[%emt 0:01:02]} 24. Qxd5 {[%emt 0:00:46]} Be5 {[%emt 0:01:13]} 25. Qxd7 {[%emt 0:02:47]} Nxd7 {[%emt 0:00:09]} 26. c6 {[%emt 0:01:10]} Nb8 {[%emt 0:07:50]} 27. c7 {[%emt 0:08:33]} Na6 {[%emt 0:01:24]} 28. Re4 {[%emt 0:01:56]} Nxc7 {[%emt 0:04:20]} 29. Rxh4 {[%emt 0:01:36]} Rab8 {[%emt 0:10:09]} 30. Ne4 {[%emt 0:16:06]} Rb2 {[%emt 0:07:28]} 31. Bxa5 {[%emt 0:01:29]} Nd5 {[%emt 0:02:11]} 32. Bd2 {[%emt 0:03:55]} Rxa2 {[%emt 0:12:39]} 33. Kh1 {[%emt 0:01:59]} Rea8 {[%emt 0:01:47]} 34. Kg1 {[%emt 0:05:22]} Bd4+ {[%emt 0:13:06]} 35. Kh2 {[%emt 0:00:21]} Be3 {[%emt 0:02:21]} 36. Rd1 {[%emt 0:02:43]} Bxd2 {[%emt 0:02:06]} 37. Rxd2 {[%emt 0:00:16]} Ne3 {[%emt 0:01:08]} 38. Rf4 {[%emt 0:03:25]} Rxd2 {[%emt 0:00:21]} 39. Nxd2 {[%emt 0:00:07]} Ra2 {[%emt 0:00:05]} 40. Re4 {[%emt 0:01:15]} Nxf5 {[%emt 0:02:32]} 41. Nf3 {[%emt 0:31:07]} g6 {[%emt 0:30:50]} 42. Nh4 {[%emt 0:06:10]} Ng7 {[%emt 0:01:33]} 43. Rb4 {[%emt 0:00:07]} Ne6 {[%emt 0:00:53]} 44. Nf3 {[%emt 0:00:00]} Kg7 {[%emt 0:00:00]} 45. Nd4 {[%emt 0:00:00]} f5 {[%emt 0:00:00]} 46. h4 {[%emt 0:00:00]} Rd2 {[%emt 0:00:00]} 47. Nf3 {[%emt 0:00:00]} Re2 {[%emt 0:00:00]} 48. Kg3 {[%emt 0:00:00]} Nc5 {[%emt 0:00:00]} 49. Kh2 {[%emt 0:00:00]} f6 {[%emt 0:00:00]} 50. h5 {[%emt 0:00:00]} g5 {[%emt 0:00:00]} 51. Nd4 {[%emt 0:00:00]} Re5 {[%emt 0:00:31]} 52. Rb5 {[%emt 0:00:00]} Kh6 {[%emt 0:00:28]} 53. Nc6 {[%emt 0:00:00]} Rd5 {[%emt 0:01:27]} 54. Ne7 {[%emt 0:00:00]} Re5 {[%emt 0:00:05]} 55. Nc6 {[%emt 0:00:00]} Nd3 {[%emt 0:00:28]} 56. Nxe5 {[%emt 0:00:20]} Nxe5 {[%emt 0:00:45]} 57. g3 {[%emt 0:01:39]} Kxh5 {[%emt 0:00:09]} 58. Kg2 {[%emt 0:00:17]} Kg6 {[%emt 0:01:48]} 59. Rb7 {[%emt 0:00:34]} Nc4 {[%emt 0:00:53]} 60. Ra7 {[%emt 0:01:17]} Nd2 {[%emt 0:00:31]} 61. Ra2 {[%emt 0:00:19]} Ne4 {[%emt 0:00:21]} 62. Ra7 {[%emt 0:00:04]} g4 {[%emt 0:01:45]} 63. Ra5 {[%emt 0:01:31]} Kg5 {[%emt 0:00:20]} 1/2-1/2